[Event "*** SCC Grand Prix: Titled Tuesday Blitz"]
[Site "Chess.com"]
[Date "2020.08.11"]
[Round "4"]
[White "ChessicallyInclined"]
[Black "Leonid_Starozhilov"]
[Result "0-1"]
[WhiteElo "2500"]
[BlackElo "2702"]
[TimeControl "180+1"]
[EndTime "10:40:28 PDT"]
[Termination "Leonid_Starozhilov won by resignation"]

1. d4 {[%clk 0:03:00.9]} 1... Nf6 {[%clk 0:03:00.2]} 2. c3 {[%clk 0:02:59.8]}
2... g6 {[%clk 0:03:00.6]} 3. Nd2 {[%clk 0:02:59.8]} 3... d5 {[%clk 0:03:00.3]}
4. g3 {[%clk 0:02:59.5]} 4... Bg7 {[%clk 0:02:58.9]} 5. Bg2 {[%clk 0:03:00.1]}
5... c6 {[%clk 0:02:59]} 6. e4 {[%clk 0:02:59.4]} 6... dxe4 {[%clk 0:02:43]} 7.
Nxe4 {[%clk 0:03:00.3]} 7... Nxe4 {[%clk 0:02:32.8]} 8. Bxe4 {[%clk 0:03:01.2]}
8... O-O {[%clk 0:02:33.5]} 9. Be3 {[%clk 0:02:53.2]} 9... Be6 {[%clk
0:02:29.4]} 10. Bg2 {[%clk 0:02:32.2]} 10... Nd7 {[%clk 0:02:17.5]} 11. Nf3
{[%clk 0:02:29.7]} 11... Bd5 {[%clk 0:02:14]} 12. O-O {[%clk 0:02:27.9]} 12...
Nf6 {[%clk 0:01:56.5]} 13. Qe2 {[%clk 0:02:24.5]} 13... e6 {[%clk 0:01:39.9]}
14. c4 {[%clk 0:02:22]} 14... Be4 {[%clk 0:01:37]} 15. Rfd1 {[%clk 0:02:19.4]}
15... Qa5 {[%clk 0:01:35.7]} 16. Bd2 {[%clk 0:02:15.5]} 16... Qh5 {[%clk
0:01:30.2]} 17. Bc3 {[%clk 0:02:09.9]} 17... Rfe8 {[%clk 0:01:24.1]} 18. h3
{[%clk 0:02:04.5]} 18... Bxf3 {[%clk 0:01:23.3]} 19. Qxf3 {[%clk 0:02:01.5]}
19... Qxf3 {[%clk 0:01:22.3]} 20. Bxf3 {[%clk 0:02:02.4]} 20... Rad8 {[%clk
0:01:21.8]} 21. a4 {[%clk 0:01:57]} 21... Nd7 {[%clk 0:01:14.9]} 22. Bg2 {[%clk
0:01:43.9]} 22... Nb8 {[%clk 0:00:52.6]} 23. Ra3 {[%clk 0:01:36.6]} 23... Na6
{[%clk 0:00:46.1]} 24. Rb3 {[%clk 0:01:34.5]} 24... Rd7 {[%clk 0:00:28.9]} 25.
Bf3 {[%clk 0:01:07.9]} 25... Red8 {[%clk 0:00:25.6]} 26. Kf1 {[%clk 0:01:05.9]}
26... Nc5 {[%clk 0:00:23.3]} 27. dxc5 {[%clk 0:01:02]} 27... Rxd1+ {[%clk
0:00:22.7]} 28. Bxd1 {[%clk 0:01:02.4]} 28... Rxd1+ {[%clk 0:00:23.4]} 29. Ke2
{[%clk 0:01:02.5]} 29... Rd7 {[%clk 0:00:23.1]} 30. Bxg7 {[%clk 0:00:53.2]}
30... Kxg7 {[%clk 0:00:24]} 31. Rc3 {[%clk 0:00:49.7]} 31... a5 {[%clk
0:00:17.6]} 32. b3 {[%clk 0:00:41.4]} 32... Kf6 {[%clk 0:00:17.7]} 33. f4 {[%clk
0:00:39.4]} 33... e5 {[%clk 0:00:18]} 34. fxe5+ {[%clk 0:00:35]} 34... Kxe5
{[%clk 0:00:18.9]} 35. Re3+ {[%clk 0:00:35]} 35... Kf6 {[%clk 0:00:19.3]} 36.
Rf3+ {[%clk 0:00:34.8]} 36... Ke7 {[%clk 0:00:19.7]} 37. Re3+ {[%clk 0:00:34.5]}
37... Kd8 {[%clk 0:00:19.9]} 38. g4 {[%clk 0:00:32.6]} 38... Re7 {[%clk
0:00:17.2]} 39. g5 {[%clk 0:00:20.5]} 39... Rxe3+ {[%clk 0:00:10.6]} 40. Kxe3
{[%clk 0:00:21.4]} 40... Ke7 {[%clk 0:00:11.1]} 41. Kf4 {[%clk 0:00:19.1]} 41...
f6 {[%clk 0:00:10.7]} 42. h4 {[%clk 0:00:14.5]} 42... Kf7 {[%clk 0:00:08.8]} 43.
Ke4 {[%clk 0:00:13.2]} 43... Kg7 {[%clk 0:00:07.1]} 44. Kf4 {[%clk 0:00:04.6]}
44... h6 {[%clk 0:00:07.3]} 45. gxh6+ {[%clk 0:00:01.6]} 45... Kxh6 {[%clk
0:00:07.6]} 46. Kg4 {[%clk 0:00:02.5]} 46... f5+ {[%clk 0:00:05.8]} 47. Kg3
{[%clk 0:00:02]} 47... g5 {[%clk 0:00:05.4]} 48. hxg5+ {[%clk 0:00:02.1]} 48...
Kxg5 {[%clk 0:00:06.3]} 49. Kf3 {[%clk 0:00:02.7]} 49... f4 {[%clk 0:00:06.9]}
50. Kf2 {[%clk 0:00:03]} 50... Kg4 {[%clk 0:00:07.2]} 51. Kg2 {[%clk 0:00:03.4]}
51... Kf5 {[%clk 0:00:07.1]} 52. Kf3 {[%clk 0:00:03.7]} 52... Ke5 {[%clk
0:00:07.5]} 53. Kf2 {[%clk 0:00:04.1]} 53... Ke4 {[%clk 0:00:07.3]} 54. Ke2
{[%clk 0:00:04.5]} 54... Kd4 {[%clk 0:00:07.7]} 55. Kf3 {[%clk 0:00:04.9]} 55...
Kxc5 {[%clk 0:00:08.4]} 56. Kxf4 {[%clk 0:00:05.5]} 56... Kb4 {[%clk 0:00:09.3]}
57. Ke5 {[%clk 0:00:06]} 57... Kxb3 {[%clk 0:00:09.8]} 58. c5 {[%clk 0:00:06.8]}
58... Kxa4 {[%clk 0:00:08.8]} 59. Kd6 {[%clk 0:00:07.7]} 59... Kb5 {[%clk
0:00:09.3]} 0-1

[Event "*** SCC Grand Prix: Titled Tuesday Blitz"]
[Site "Chess.com"]
[Date "2020.08.11"]
[Round "4"]
[White "ural58"]
[Black "1stSecond"]
[Result "0-1"]
[WhiteElo "2514"]
[BlackElo "2775"]
[TimeControl "180+1"]
[EndTime "10:40:29 PDT"]
[Termination "1stSecond won on time"]

1. e4 {[%clk 0:02:48.2]} 1... c6 {[%clk 0:02:59.6]} 2. b3 {[%clk 0:02:47.7]}
2... d5 {[%clk 0:02:59.1]} 3. Qe2 {[%clk 0:02:48]} 3... dxe4 {[%clk 0:02:58.2]}
4. Nc3 {[%clk 0:02:48.2]} 4... Nf6 {[%clk 0:02:57.6]} 5. Nxe4 {[%clk 0:02:48.2]}
5... Bf5 {[%clk 0:02:54.5]} 6. Nxf6+ {[%clk 0:02:47.5]} 6... gxf6 {[%clk
0:02:55.4]} 7. Bb2 {[%clk 0:02:47.3]} 7... Bg7 {[%clk 0:02:47.7]} 8. O-O-O
{[%clk 0:02:46.8]} 8... Qa5 {[%clk 0:02:47.1]} 9. g4 {[%clk 0:02:45.7]} 9... Be6
{[%clk 0:02:39.2]} 10. Kb1 {[%clk 0:02:38.3]} 10... Na6 {[%clk 0:02:37.8]} 11.
Nh3 {[%clk 0:02:18.6]} 11... Nb4 {[%clk 0:02:22.1]} 12. a3 {[%clk 0:02:17.4]}
12... Nd5 {[%clk 0:02:16.7]} 13. f4 {[%clk 0:02:12.4]} 13... O-O-O {[%clk
0:02:05.6]} 14. f5 {[%clk 0:02:10.9]} 14... Bd7 {[%clk 0:02:05.9]} 15. Bg2
{[%clk 0:02:08.8]} 15... Rhe8 {[%clk 0:02:04.5]} 16. b4 {[%clk 0:01:44.6]} 16...
Qa4 {[%clk 0:02:00.6]} 17. Bxd5 {[%clk 0:01:31.7]} 17... cxd5 {[%clk 0:01:59.3]}
18. Nf4 {[%clk 0:01:32.3]} 18... Bc6 {[%clk 0:01:45.1]} 19. Rhe1 {[%clk
0:01:26.9]} 19... Bh6 {[%clk 0:01:37.9]} 20. Nd3 {[%clk 0:01:26]} 20... Qb5
{[%clk 0:01:32.1]} 21. h4 {[%clk 0:01:18.4]} 21... Qc4 {[%clk 0:01:26.6]} 22.
Qf2 {[%clk 0:00:51.2]} 22... d4 {[%clk 0:01:26.6]} 23. Nc5 {[%clk 0:00:35.3]}
23... b6 {[%clk 0:01:18.9]} 24. d3 {[%clk 0:00:34.3]} 24... Qd5 {[%clk
0:01:15.4]} 25. Nb3 {[%clk 0:00:34]} 25... Be3 {[%clk 0:01:11.8]} 26. Qg3 {[%clk
0:00:29.6]} 26... e5 {[%clk 0:01:05.9]} 27. fxe6 {[%clk 0:00:29.1]} 27... Rxe6
{[%clk 0:01:05.7]} 28. Bc1 {[%clk 0:00:29.6]} 28... Qf3 {[%clk 0:01:01.9]} 29.
Qh2 {[%clk 0:00:23.7]} 29... Qxg4 {[%clk 0:00:47.8]} 30. Bxe3 {[%clk 0:00:22.4]}
30... dxe3 {[%clk 0:00:48.7]} 31. Rg1 {[%clk 0:00:20.6]} 31... e2 {[%clk
0:00:42.9]} 32. Rde1 {[%clk 0:00:20.5]} 32... Qf3 {[%clk 0:00:40.8]} 33. Qg3
{[%clk 0:00:17.2]} 33... Qxg3 {[%clk 0:00:37.5]} 34. Rxg3 {[%clk 0:00:18.1]}
34... f5 {[%clk 0:00:37.8]} 35. Rg7 {[%clk 0:00:16.3]} 35... Rd7 {[%clk
0:00:27.1]} 36. Nc1 {[%clk 0:00:15.6]} 36... Rde7 {[%clk 0:00:26.2]} 37. Rg5
{[%clk 0:00:12.8]} 37... f4 {[%clk 0:00:26]} 38. Rf5 {[%clk 0:00:12.7]} 38... f3
{[%clk 0:00:26.3]} 39. Kb2 {[%clk 0:00:09.5]} 39... Rg6 {[%clk 0:00:19.7]} 40.
Kc3 {[%clk 0:00:09.5]} 40... Rg2 {[%clk 0:00:20]} 41. Kd2 {[%clk 0:00:09.1]}
41... Rf2 {[%clk 0:00:15.8]} 42. c4 {[%clk 0:00:06.9]} 42... Bd7 {[%clk
0:00:15.4]} 43. Rf4 {[%clk 0:00:06.6]} 43... Rf1 {[%clk 0:00:15.7]} 44. h5
{[%clk 0:00:04.7]} 44... Bg4 {[%clk 0:00:13.3]} 45. d4 {[%clk 0:00:04.2]} 45...
f2 {[%clk 0:00:12.1]} 46. Rxe2 {[%clk 0:00:02.1]} 46... Bxe2 {[%clk 0:00:09.9]}
47. Nxe2 {[%clk 0:00:03]} 47... Ra1 {[%clk 0:00:05.8]} 48. Rxf2 {[%clk 0:00:02]}
48... Ra2+ {[%clk 0:00:06.3]} 49. Kd1 {[%clk 0:00:02.1]} 49... Rxa3 {[%clk
0:00:05.9]} 50. Nc1 {[%clk 0:00:01.3]} 50... Rh3 {[%clk 0:00:04.6]} 0-1

[Event "*** SCC Grand Prix: Titled Tuesday Blitz"]
[Site "Chess.com"]
[Date "2020.08.11"]
[Round "4"]
[White "Chessbard1972"]
[Black "vinniethepooh"]
[Result "0-1"]
[WhiteElo "2337"]
[BlackElo "2687"]
[TimeControl "180+1"]
[EndTime "10:40:31 PDT"]
[Termination "vinniethepooh won by checkmate"]

1. e4 {[%clk 0:03:00.9]} 1... c5 {[%clk 0:03:00.2]} 2. d4 {[%clk 0:03:00.1]}
2... cxd4 {[%clk 0:03:00.2]} 3. c3 {[%clk 0:02:59.8]} 3... dxc3 {[%clk
0:02:56.6]} 4. Nxc3 {[%clk 0:02:59]} 4... Nc6 {[%clk 0:02:57.2]} 5. Bc4 {[%clk
0:02:58.7]} 5... e6 {[%clk 0:02:56.6]} 6. Bf4 {[%clk 0:02:58.2]} 6... d6 {[%clk
0:02:49.6]} 7. Nf3 {[%clk 0:02:57.2]} 7... Nf6 {[%clk 0:02:49.2]} 8. O-O {[%clk
0:02:56.5]} 8... Be7 {[%clk 0:02:47.2]} 9. h3 {[%clk 0:02:56.1]} 9... O-O {[%clk
0:02:46.5]} 10. Qe2 {[%clk 0:02:56.1]} 10... Qc7 {[%clk 0:02:40]} 11. Rac1
{[%clk 0:02:54.3]} 11... a6 {[%clk 0:02:39]} 12. a4 {[%clk 0:02:51.5]} 12... Qb8
{[%clk 0:02:35.9]} 13. Rfd1 {[%clk 0:02:51.1]} 13... Ne5 {[%clk 0:02:35]} 14.
Ba2 {[%clk 0:02:50.1]} 14... b6 {[%clk 0:02:31.8]} 15. Nd4 {[%clk 0:02:49.4]}
15... Bb7 {[%clk 0:02:30.3]} 16. Bg3 {[%clk 0:02:49.4]} 16... Rc8 {[%clk
0:02:13.1]} 17. f4 {[%clk 0:02:45.1]} 17... Nc6 {[%clk 0:02:03.1]} 18. Bf2
{[%clk 0:02:41.8]} 18... Nd7 {[%clk 0:01:54.4]} 19. Nxe6 {[%clk 0:02:40]} 19...
Nb4 {[%clk 0:01:03.8]} 20. Bb3 {[%clk 0:02:38.8]} 20... Nc5 {[%clk 0:00:55.5]}
21. Nxc5 {[%clk 0:02:37.2]} 21... dxc5 {[%clk 0:00:56.4]} 22. Rd7 {[%clk
0:02:33.4]} 22... Rc7 {[%clk 0:00:38.7]} 23. Rcd1 {[%clk 0:02:26.9]} 23... Bc6
{[%clk 0:00:39]} 24. R7d2 {[%clk 0:02:21.3]} 24... Qb7 {[%clk 0:00:39]} 25. Nd5
{[%clk 0:02:16.1]} 25... Bxd5 {[%clk 0:00:34.4]} 26. Bxd5 {[%clk 0:02:12.7]}
26... Nxd5 {[%clk 0:00:34.6]} 27. Rxd5 {[%clk 0:02:11.8]} 27... Qc6 {[%clk
0:00:33.6]} 28. b3 {[%clk 0:02:09.4]} 28... b5 {[%clk 0:00:31.7]} 29. axb5
{[%clk 0:02:07.2]} 29... axb5 {[%clk 0:00:32.6]} 30. e5 {[%clk 0:02:07.3]} 30...
c4 {[%clk 0:00:29.8]} 31. bxc4 {[%clk 0:02:06.2]} 31... bxc4 {[%clk 0:00:30.7]}
32. f5 {[%clk 0:02:00.1]} 32... f6 {[%clk 0:00:24.8]} 33. exf6 {[%clk
0:01:53.4]} 33... Qxf6 {[%clk 0:00:24.1]} 34. Bd4 {[%clk 0:01:48.2]} 34... Qf7
{[%clk 0:00:24.1]} 35. Be5 {[%clk 0:01:46.6]} 35... Rc5 {[%clk 0:00:22.1]} 36.
Rd7 {[%clk 0:01:39.6]} 36... Re8 {[%clk 0:00:22.2]} 37. Bd4 {[%clk 0:01:34.9]}
37... Rxf5 {[%clk 0:00:19.7]} 38. Re1 {[%clk 0:01:31.5]} 38... h5 {[%clk
0:00:15.6]} 39. Rxe7 {[%clk 0:01:24.8]} 39... Rxe7 {[%clk 0:00:16.5]} 40. Qxe7
{[%clk 0:01:24.3]} 40... Rf1+ {[%clk 0:00:15.6]} 41. Kh2 {[%clk 0:01:17.8]}
41... Qf4+ {[%clk 0:00:15.1]} 42. g3 {[%clk 0:01:16.3]} 42... Qd2+ {[%clk
0:00:14.7]} 43. Re2 {[%clk 0:01:11.2]} 43... Qxd4 {[%clk 0:00:14.9]} 44. Qe8+
{[%clk 0:01:09.8]} 44... Rf8 {[%clk 0:00:14.8]} 45. Qxh5 {[%clk 0:01:02.2]}
45... c3 {[%clk 0:00:15]} 46. Kg2 {[%clk 0:00:57.4]} 46... Qd3 {[%clk
0:00:14.4]} 47. Qe5 {[%clk 0:00:52.6]} 47... c2 {[%clk 0:00:07]} 48. Qe6+ {[%clk
0:00:50.5]} 48... Kh8 {[%clk 0:00:06.4]} 49. Rf2 {[%clk 0:00:24.5]} 49... Rxf2+
{[%clk 0:00:03.7]} 50. Kxf2 {[%clk 0:00:24.2]} 50... c1=Q {[%clk 0:00:04.2]} 51.
Qe8+ {[%clk 0:00:24.3]} 51... Kh7 {[%clk 0:00:04.6]} 52. Qh5+ {[%clk 0:00:23.3]}
52... Qh6 {[%clk 0:00:05]} 53. Qxh6+ {[%clk 0:00:22.3]} 53... Kxh6 {[%clk
0:00:05.1]} 54. h4 {[%clk 0:00:21.9]} 54... g5 {[%clk 0:00:06]} 55. hxg5+ {[%clk
0:00:21.6]} 55... Kxg5 {[%clk 0:00:06.9]} 56. Kg2 {[%clk 0:00:22.3]} 56... Kg4
{[%clk 0:00:07.8]} 57. Kf2 {[%clk 0:00:22.1]} 57... Qd2+ {[%clk 0:00:08.7]} 58.
Kf1 {[%clk 0:00:21.9]} 58... Kxg3 {[%clk 0:00:09.6]} 59. Kg1 {[%clk 0:00:20.7]}
59... Qd1# {[%clk 0:00:10.5]} 0-1

[Event "*** SCC Grand Prix: Titled Tuesday Blitz"]
[Site "Chess.com"]
[Date "2020.08.11"]
[Round "4"]
[White "UKR_Master"]
[Black "Sophist4Life"]
[Result "1-0"]
[WhiteElo "2313"]
[BlackElo "2497"]
[TimeControl "180+1"]
[EndTime "10:40:31 PDT"]
[Termination "UKR_Master won on time"]

1. e4 {[%clk 0:03:00.9]} 1... c6 {[%clk 0:02:59.8]} 2. Nc3 {[%clk 0:03:00.1]}
2... d5 {[%clk 0:03:00.7]} 3. Nf3 {[%clk 0:03:01]} 3... Bg4 {[%clk 0:03:00]} 4.
h3 {[%clk 0:03:01.5]} 4... Bxf3 {[%clk 0:03:00]} 5. Qxf3 {[%clk 0:03:02.4]} 5...
Nf6 {[%clk 0:03:00.1]} 6. d3 {[%clk 0:02:57.6]} 6... e6 {[%clk 0:02:56.8]} 7. g3
{[%clk 0:02:57.9]} 7... Nbd7 {[%clk 0:02:56.9]} 8. Bg2 {[%clk 0:02:58.2]} 8...
Bc5 {[%clk 0:02:56.1]} 9. O-O {[%clk 0:02:58.1]} 9... O-O {[%clk 0:02:56.1]} 10.
Qe2 {[%clk 0:02:51.9]} 10... a5 {[%clk 0:02:54.3]} 11. Kh2 {[%clk 0:02:50.8]}
11... d4 {[%clk 0:02:48.3]} 12. Nd1 {[%clk 0:02:49.8]} 12... e5 {[%clk
0:02:46.4]} 13. f4 {[%clk 0:02:49.4]} 13... Bd6 {[%clk 0:02:38.5]} 14. f5 {[%clk
0:02:47.7]} 14... Kh8 {[%clk 0:02:36]} 15. g4 {[%clk 0:02:47.8]} 15... Ne8
{[%clk 0:02:32.5]} 16. g5 {[%clk 0:02:46.8]} 16... Rg8 {[%clk 0:02:27.8]} 17.
Nf2 {[%clk 0:02:46.4]} 17... Be7 {[%clk 0:02:24]} 18. h4 {[%clk 0:02:45.6]}
18... c5 {[%clk 0:02:19.3]} 19. a4 {[%clk 0:02:44.1]} 19... Rc8 {[%clk
0:02:17.9]} 20. b3 {[%clk 0:02:44.3]} 20... g6 {[%clk 0:02:10.7]} 21. Ng4 {[%clk
0:02:41.2]} 21... gxf5 {[%clk 0:02:05.3]} 22. exf5 {[%clk 0:02:38.4]} 22... Nd6
{[%clk 0:02:02.2]} 23. Nxe5 {[%clk 0:02:29.9]} 23... f6 {[%clk 0:01:51.8]} 24.
Nxd7 {[%clk 0:01:23.7]} 24... Qxd7 {[%clk 0:01:52.7]} 25. Bd5 {[%clk 0:01:24.3]}
25... Rg7 {[%clk 0:01:51]} 26. Be6 {[%clk 0:01:24.1]} 26... Qd8 {[%clk 0:01:49]}
27. Bxc8 {[%clk 0:01:22.8]} 27... Qxc8 {[%clk 0:01:48.7]} 28. Qe6 {[%clk
0:01:14.7]} 28... fxg5 {[%clk 0:01:44.2]} 29. Qxc8+ {[%clk 0:01:08.3]} 29...
Nxc8 {[%clk 0:01:45.1]} 30. f6 {[%clk 0:01:08.9]} 30... Bd6+ {[%clk 0:01:45.2]}
31. Kh1 {[%clk 0:01:09.4]} 31... Rg6 {[%clk 0:01:42.7]} 32. hxg5 {[%clk
0:01:09.7]} 32... h6 {[%clk 0:01:36.5]} 33. gxh6 {[%clk 0:01:07.3]} 33... Bf8
{[%clk 0:01:32.2]} 34. Bd2 {[%clk 0:01:01.8]} 34... Nd6 {[%clk 0:01:26.5]} 35.
Rae1 {[%clk 0:01:00.3]} 35... Bxh6 {[%clk 0:01:21.3]} 36. Bxh6 {[%clk
0:00:42.6]} 36... Rxh6+ {[%clk 0:01:22.2]} 37. Kg2 {[%clk 0:00:43.3]} 37... Kg8
{[%clk 0:01:14.7]} 38. Re7 {[%clk 0:00:33]} 38... Rg6+ {[%clk 0:01:10.8]} 39.
Kh3 {[%clk 0:00:32.3]} 39... Rg5 {[%clk 0:01:07.4]} 40. f7+ {[%clk 0:00:21.8]}
40... Kf8 {[%clk 0:01:00.6]} 41. Rd7 {[%clk 0:00:22.2]} 41... Nf5 {[%clk
0:00:47.6]} 42. Rd5 {[%clk 0:00:18.9]} 42... Rh5+ {[%clk 0:00:34.7]} 43. Kg4
{[%clk 0:00:18.7]} 43... Ne3+ {[%clk 0:00:26.1]} 44. Kxh5 {[%clk 0:00:18.8]}
44... Nxd5 {[%clk 0:00:24.9]} 45. Kg5 {[%clk 0:00:16.9]} 45... Ne3 {[%clk
0:00:22.7]} 46. Rf2 {[%clk 0:00:17.2]} 46... Nd1 {[%clk 0:00:20.5]} 47. Rf6
{[%clk 0:00:12.5]} 47... Ne3 {[%clk 0:00:19]} 48. Kf4 {[%clk 0:00:10.9]} 48...
Nd5+ {[%clk 0:00:16.8]} 49. Ke5 {[%clk 0:00:10.9]} 49... Ne7 {[%clk 0:00:12.9]}
50. Ke6 {[%clk 0:00:10.7]} 50... Nc6 {[%clk 0:00:11.4]} 51. Rg6 {[%clk
0:00:10.8]} 51... Nd8+ {[%clk 0:00:09]} 52. Kf6 {[%clk 0:00:11.1]} 52... Nxf7
{[%clk 0:00:07.1]} 53. Rg7 {[%clk 0:00:11.7]} 53... Nd6 {[%clk 0:00:06.1]} 54.
Rd7 {[%clk 0:00:10.6]} 54... Ne8+ {[%clk 0:00:04.7]} 55. Ke6 {[%clk 0:00:11.1]}
1-0

[Event "*** SCC Grand Prix: Titled Tuesday Blitz"]
[Site "Chess.com"]
[Date "2020.08.11"]
[Round "4"]
[White "Sacbutt"]
[Black "ailime26"]
[Result "0-1"]
[WhiteElo "2196"]
[BlackElo "1901"]
[TimeControl "180+1"]
[EndTime "10:40:36 PDT"]
[Termination "ailime26 won on time"]

1. e4 {[%clk 0:03:00.8]} 1... c5 {[%clk 0:02:59.9]} 2. Nf3 {[%clk 0:03:00.6]}
2... Nc6 {[%clk 0:02:59.4]} 3. d4 {[%clk 0:03:00.7]} 3... cxd4 {[%clk
0:02:59.1]} 4. c3 {[%clk 0:03:00.9]} 4... dxc3 {[%clk 0:02:58.2]} 5. Nxc3 {[%clk
0:03:01.8]} 5... e6 {[%clk 0:02:58]} 6. Bc4 {[%clk 0:03:01.7]} 6... Nf6 {[%clk
0:02:57]} 7. Qe2 {[%clk 0:03:00.8]} 7... Be7 {[%clk 0:02:55.8]} 8. O-O {[%clk
0:03:00.2]} 8... d5 {[%clk 0:02:55.6]} 9. exd5 {[%clk 0:02:57.6]} 9... Nxd5
{[%clk 0:02:54.9]} 10. Nxd5 {[%clk 0:02:54]} 10... exd5 {[%clk 0:02:55]} 11. Rd1
{[%clk 0:02:51.9]} 11... d4 {[%clk 0:02:51]} 12. Bg5 {[%clk 0:02:42.7]} 12...
O-O {[%clk 0:02:44.4]} 13. Bxe7 {[%clk 0:02:36.7]} 13... Qxe7 {[%clk 0:02:42.9]}
14. Qxe7 {[%clk 0:02:35.3]} 14... Nxe7 {[%clk 0:02:42.1]} 15. Nxd4 {[%clk
0:02:35.7]} 15... a6 {[%clk 0:02:38.9]} 16. Re1 {[%clk 0:02:30.3]} 16... Nf5
{[%clk 0:02:36.4]} 17. Nf3 {[%clk 0:02:26.5]} 17... b5 {[%clk 0:02:34.3]} 18.
Bd5 {[%clk 0:02:23.4]} 18... Ra7 {[%clk 0:02:34]} 19. Rac1 {[%clk 0:02:20.8]}
19... Bb7 {[%clk 0:02:32.7]} 20. Rc7 {[%clk 0:02:19.6]} 20... Bxd5 {[%clk
0:02:22.7]} 21. Rxa7 {[%clk 0:02:18.8]} 21... Bxa2 {[%clk 0:02:22.9]} 22. Rxa6
{[%clk 0:02:18.2]} 22... Bc4 {[%clk 0:02:22.7]} 23. Ne5 {[%clk 0:02:13.6]} 23...
Be6 {[%clk 0:02:17]} 24. Rb6 {[%clk 0:02:12.1]} 24... Nd4 {[%clk 0:02:08.5]} 25.
h3 {[%clk 0:02:06.7]} 25... g6 {[%clk 0:02:05.1]} 26. Re4 {[%clk 0:01:59.4]}
26... Nb3 {[%clk 0:01:54.4]} 27. Rxb5 {[%clk 0:01:54.2]} 27... Rc8 {[%clk
0:01:46.5]} 28. Kh2 {[%clk 0:01:25]} 28... Rc2 {[%clk 0:01:45.4]} 29. f3 {[%clk
0:01:22.1]} 29... Rxb2 {[%clk 0:01:41]} 30. Re3 {[%clk 0:01:15.4]} 30... Kg7
{[%clk 0:01:34.7]} 31. Nc6 {[%clk 0:01:06.7]} 31... Rc2 {[%clk 0:01:25.4]} 32.
Nd8 {[%clk 0:01:01.4]} 32... Nd4 {[%clk 0:01:18.2]} 33. Rb7 {[%clk 0:00:53.1]}
33... Ba2 {[%clk 0:00:46.9]} 34. Ra3 {[%clk 0:00:42.1]} 34... h5 {[%clk
0:00:38.1]} 35. Rd7 {[%clk 0:00:38.6]} 35... Nf5 {[%clk 0:00:31.5]} 36. Raa7
{[%clk 0:00:21]} 36... Nh6 {[%clk 0:00:30.1]} 37. Rdc7 {[%clk 0:00:18.7]} 37...
Rd2 {[%clk 0:00:28.7]} 38. Nc6 {[%clk 0:00:18.1]} 38... Bd5 {[%clk 0:00:25.6]}
39. Ne5 {[%clk 0:00:17.1]} 39... Re2 {[%clk 0:00:20.5]} 40. Nc4 {[%clk
0:00:14.4]} 40... Nf5 {[%clk 0:00:17.6]} 41. Nb6 {[%clk 0:00:10.4]} 41... Be6
{[%clk 0:00:16.5]} 42. Rc3 {[%clk 0:00:04]} 42... Nh4 {[%clk 0:00:15.1]} 43. Kg3
{[%clk 0:00:03.6]} 43... Nf5+ {[%clk 0:00:14.8]} 44. Kh2 {[%clk 0:00:03.3]}
44... Nh4 {[%clk 0:00:14.6]} 45. Nc4 {[%clk 0:00:02.9]} 45... Rxg2+ {[%clk
0:00:13.3]} 46. Kh1 {[%clk 0:00:03.2]} 46... Re2 {[%clk 0:00:10.8]} 0-1

[Event "*** SCC Grand Prix: Titled Tuesday Blitz"]
[Site "Chess.com"]
[Date "2020.08.11"]
[Round "4"]
[White "tylityli"]
[Black "boasovietica"]
[Result "0-1"]
[WhiteElo "2164"]
[BlackElo "2403"]
[TimeControl "180+1"]
[EndTime "10:40:37 PDT"]
[Termination "boasovietica won on time"]

1. d4 {[%clk 0:03:00.9]} 1... Nf6 {[%clk 0:02:57.4]} 2. c4 {[%clk 0:03:00.3]}
2... g6 {[%clk 0:02:57.1]} 3. Nc3 {[%clk 0:02:59.9]} 3... Bg7 {[%clk 0:02:57.6]}
4. e4 {[%clk 0:03:00]} 4... O-O {[%clk 0:02:58.2]} 5. Nge2 {[%clk 0:03:00.1]}
5... d6 {[%clk 0:02:58.6]} 6. Ng3 {[%clk 0:03:00]} 6... c5 {[%clk 0:02:58.9]} 7.
d5 {[%clk 0:02:59.9]} 7... e6 {[%clk 0:02:59.1]} 8. Be2 {[%clk 0:02:59.3]} 8...
exd5 {[%clk 0:02:59.3]} 9. cxd5 {[%clk 0:03:00.2]} 9... a6 {[%clk 0:02:56.1]}
10. a4 {[%clk 0:02:59.7]} 10... Nbd7 {[%clk 0:02:47.5]} 11. O-O {[%clk
0:02:59.1]} 11... Re8 {[%clk 0:02:28.4]} 12. f4 {[%clk 0:02:56.4]} 12... Rb8
{[%clk 0:02:15.8]} 13. Bd3 {[%clk 0:02:35.9]} 13... c4 {[%clk 0:01:26.8]} 14.
Bxc4 {[%clk 0:02:33]} 14... b5 {[%clk 0:01:26.7]} 15. axb5 {[%clk 0:02:27.6]}
15... axb5 {[%clk 0:01:26.9]} 16. Bxb5 {[%clk 0:02:06.8]} 16... Rxb5 {[%clk
0:01:26.2]} 17. Nxb5 {[%clk 0:02:03.8]} 17... Qb6+ {[%clk 0:01:26.6]} 18. Nd4
{[%clk 0:02:00.3]} 18... Nxe4 {[%clk 0:01:10.3]} 19. Ne2 {[%clk 0:01:58.4]}
19... Ba6 {[%clk 0:01:02.5]} 20. Rxa6 {[%clk 0:01:41.7]} 20... Qxa6 {[%clk
0:00:59.6]} 21. Kh1 {[%clk 0:01:31.9]} 21... Ndc5 {[%clk 0:00:54.9]} 22. b4
{[%clk 0:01:27.4]} 22... Nd3 {[%clk 0:00:47.3]} 23. b5 {[%clk 0:01:18.2]} 23...
Ndf2+ {[%clk 0:00:41.7]} 24. Kg1 {[%clk 0:01:10.9]} 24... Qb6 {[%clk 0:00:36.3]}
25. Rxf2 {[%clk 0:01:03.9]} 25... Nxf2 {[%clk 0:00:35.9]} 26. Kxf2 {[%clk
0:01:04.2]} 26... Rxe2+ {[%clk 0:00:26]} 27. Qxe2 {[%clk 0:00:57.3]} 27... Bxd4+
{[%clk 0:00:26.3]} 28. Be3 {[%clk 0:00:55.9]} 28... Bxe3+ {[%clk 0:00:23.1]} 29.
Qxe3 {[%clk 0:00:55.8]} 29... Qxb5 {[%clk 0:00:23.5]} 30. Qd4 {[%clk 0:00:48.8]}
30... Qa5 {[%clk 0:00:18.1]} 31. g4 {[%clk 0:00:39]} 31... Qc5 {[%clk
0:00:08.8]} 32. Ke3 {[%clk 0:00:17.7]} 32... Qc1+ {[%clk 0:00:08.3]} 33. Qd2
{[%clk 0:00:16.4]} 33... Qg1+ {[%clk 0:00:07.9]} 34. Kf3 {[%clk 0:00:15.6]}
34... Qh1+ {[%clk 0:00:08]} 35. Kg3 {[%clk 0:00:15.2]} 35... Qe4 {[%clk
0:00:07.2]} 36. Kf2 {[%clk 0:00:13.2]} 36... h6 {[%clk 0:00:06.6]} 37. Kg3
{[%clk 0:00:12.5]} 37... Kh7 {[%clk 0:00:06.7]} 38. h4 {[%clk 0:00:12]} 38... h5
{[%clk 0:00:05.4]} 39. gxh5 {[%clk 0:00:11.2]} 39... gxh5 {[%clk 0:00:05.9]} 40.
Kf2 {[%clk 0:00:10.8]} 40... Kh6 {[%clk 0:00:05]} 41. Kg3 {[%clk 0:00:10.4]}
41... Qf5 {[%clk 0:00:04.6]} 42. Kf3 {[%clk 0:00:08]} 42... Qg4+ {[%clk
0:00:04.7]} 43. Ke4 {[%clk 0:00:08.3]} 43... Qxh4 {[%clk 0:00:04.6]} 44. Kf5
{[%clk 0:00:08.2]} 44... Qg4+ {[%clk 0:00:03.5]} 45. Kf6 {[%clk 0:00:08.6]}
45... Qg6+ {[%clk 0:00:03.6]} 46. Ke7 {[%clk 0:00:08.7]} 46... h4 {[%clk
0:00:03]} 47. f5+ {[%clk 0:00:07.5]} 47... Qg5+ {[%clk 0:00:03.5]} 48. Qxg5+
{[%clk 0:00:06.9]} 48... Kxg5 {[%clk 0:00:04.4]} 49. Kxd6 {[%clk 0:00:05]} 49...
h3 {[%clk 0:00:04.8]} 50. Ke7 {[%clk 0:00:04.5]} 50... h2 {[%clk 0:00:05.4]} 51.
d6 {[%clk 0:00:04.9]} 51... h1=Q {[%clk 0:00:05.8]} 52. d7 {[%clk 0:00:05]}
52... Qe4+ {[%clk 0:00:06.2]} 53. Kf8 {[%clk 0:00:03.2]} 53... Qd5 {[%clk
0:00:06.3]} 54. Ke8 {[%clk 0:00:02.7]} 54... Kxf5 {[%clk 0:00:04.7]} 0-1